bitfinex/quotes_ETHUSD_20241204
["timestamp","ask_amount","ask_price","bid_price","bid_amount"]
[1733331197265,0.02668799,3744.7,3743.2,1.5095]
[1733331197465,3.0,3745.8,3743.2,1.5095]
[1733331197756,0.02668799,3745.5,3743.2,1.5095]
[1733331197970,2.67058,3744.6,3743.3,2.67143]
[1733331198140,0.4667688,3745.4,3743.2,1.66045]
[1733331198141,2.67072,3744.4,3743.2,1.66045]
[1733331198343,0.4667688,3745.4,3743.2,1.66045]
[1733331198344,2.67011,3745.2,3743.5,2.67129]
[1733331198581,0.02668799,3745.3,3743.2,4.3319]
[1733331198733,0.4667688,3745.4,3743.2,1.5095]
[1733331198734,2.67073,3744.3,3743.2,1.5095]
[1733331198935,2.67057,3744.6,3743.2,1.5095]
[1733331199143,0.4667688,3745.4,3743.3,0.02671004]
[1733331199341,1.5491,3746.2,3744.4,2.67064]
[1733331199524,2.6692,3746.5,3744.6,1.5297]
[1733331199723,2.66916,3746.5,3745.3,2.67001]
[1733331199922,4.0,3745.4,3744.6,4.5297]
[1733331200155,4.0,3745.4,3744.6,1.5297]
[1733331200317,0.18411679,3746.6,3745.2,2.67008]
[1733331200522,0.18411679,3746.6,3743.8,0.2]
[1733331200523,2.66937,3746.2,3745.0,2.67022]
[1733331200722,0.1574288,3746.6,3744.9,1.5814]
[1733331200723,2.66923,3746.4,3744.9,1.5814]
[1733331200951,2.66923,3746.4,3745.2,2.67007]
[1733331201150,0.1574288,3746.6,3744.9,1.5814]
[1733331201151,2.8265088,3746.6,3745.5,2.66986]
[1733331201354,2.8265088,3746.6,3744.9,1.5814]
[1733331201355,2.66997,3745.4,3744.9,1.5814]
[1733331201566,0.30933887,3746.5,3741.1,0.01249388]
[1733331201567,0.02668799,3745.3,3744.1,1.5811]
[1733331201767,0.81601677,3745.3,3743.4,1.5811]
[1733331201949,1.5325,3745.4,3743.4,1.5811]
[1733331202152,1.5325,3746.0,3744.5,1.5811]
[1733331202368,0.02668799,3746.1,3744.6,0.02670039]
[1733331202369,0.1559188,3745.9,3744.6,0.02670039]
[1733331202721,0.1574288,3746.6,3745.4,2.66991]
[1733331202885,2.66904,3746.7,3745.5,1.5811]
[1733331203027,0.02668799,3746.6,3745.5,1.5811]
[1733331203227,2.66954,3746.0,3745.5,1.5811]
[1733331203460,2.66967,3745.8,3744.5,2.67057]
[1733331203959,0.02668799,3745.7,3744.5,2.67057]
[1733331204293,2.66942,3746.2,3744.4,1.5811]
[1733331204603,0.02668799,3746.7,3744.7,1.5537]
[1733331204748,2.66968,3745.8,3744.7,1.5537]
[1733331205094,0.02668799,3746.6,3744.7,1.5537]
[1733331205405,2.6688,3747.0,3744.7,1.5537]
[1733331205406,0.5450392,3746.7,3744.8,0.02669896]
[1733331205711,2.66922,3746.4,3744.7,4.22407]
[1733331205997,2.66959,3745.9,3744.7,4.22407]
[1733331206288,2.66937,3746.2,3744.7,1.5537]
[1733331206495,0.2695908,3746.3,3744.7,1.5537]
[1733331206793,0.5450392,3746.7,3744.7,1.5537]
[1733331206794,2.66918,3746.5,3744.8,1.6244]
[1733331207101,0.57172719,3746.7,3744.8,1.6244]
[1733331207251,4.20117,3747.2,3744.9,0.0266956]
[1733331207594,0.02668799,3747.1,3745.2,1.6244]
[1733331207905,0.40883785,3747.7,3745.2,1.6244]
[1733331207906,2.66858,3747.4,3746.2,1.5732]
[1733331208058,0.80952285,3747.3,3746.2,1.5732]
[1733331208254,0.41759092,3748.5,3746.3,0.02668996]
[1733331208255,4.59263092,3748.5,3746.3,0.02668996]
[1733331208492,2.66803,3748.1,3746.4,2.66922]
[1733331208697,0.41759092,3748.5,3746.6,1.5732]
[1733331208997,1.91485984,3749.0,3747.7,1.5732]
[1733331208998,0.540955,3747.8,3747.7,1.5732]
[1733331209200,0.02668799,3749.4,3747.9,2.66814]
[1733331209399,0.41747364,3750.0,3747.7,1.59987663]
[1733331209400,2.66682,3749.8,3747.7,1.59987663]
[1733331209604,0.5446953,3749.5,3748.0,0.02667663]
[1733331209766,2.66686,3749.8,3748.0,0.02667663]
[1733331210102,0.417416,3749.7,3748.9,2.66744]
[1733331210252,2.66647,3750.3,3749.1,2.66729]
[1733331210652,0.0811795,3750.5,3749.2,2.69387759]
[1733331210887,0.54758068,3750.1,3749.2,0.02666759]
[1733331211047,0.0811795,3750.5,3748.8,1.5732]
[1733331211048,0.0811795,3750.5,3748.9,0.02666509]
[1733331211251,0.0811795,3750.5,3749.3,2.66716]
[1733331211496,0.0811795,3750.5,3748.9,2.69410509]
[1733331211648,0.0811795,3750.5,3749.5,2.66697]
[1733331211853,0.0811795,3750.5,3749.7,4.24005]
[1733331212175,0.0811795,3750.5,3749.9,2.66673]
[1733331212382,0.0811795,3750.5,3749.8,0.02666244]
[1733331212955,0.0811795,3750.5,3750.1,2.66658]
[1733331213151,0.0811795,3750.5,3749.8,0.02666244]
[1733331213152,0.0811795,3750.5,3750.3,1.6578]
[1733331214170,0.0811795,3750.5,3749.2,2.6672]
[1733331214171,0.0811795,3750.5,3749.2,0.02665813]
[1733331214370,0.0811795,3750.5,3748.4,0.54506934]
[1733331214569,0.0811795,3750.5,3747.5,0.2]
[1733331214570,2.66666,3750.1,3748.5,0.02666755]
[1733331214771,0.0811795,3750.5,3748.5,0.02666755]
[1733331215117,0.0811795,3750.5,3749.1,0.1]
[1733331215270,0.0811795,3750.5,3750.2,2.6665]
[1733331215472,0.0811795,3750.5,3749.3,2.66716]
[1733331215775,0.0811795,3750.5,3749.4,2.66709]
[1733331215997,0.0811795,3750.5,3750.3,2.66641]
[1733331216305,0.4170794,3751.0,3750.9,2.66602]
[1733331216809,2.66458,3753.0,3750.4,2.66631]
[1733331216957,2.66443,3753.2,3751.6,2.6655]
[1733331217156,0.53439635,3753.3,3751.7,2.66544]
[1733331217403,0.03330773,3753.2,3750.7,0.52196233]
[1733331217755,2.66468,3752.8,3751.3,2.66569]
[1733331217927,0.266468,3752.7,3750.9,2.66602]
[1733331218082,2.66507,3752.3,3751.0,0.8442]
[1733331218285,0.03331351,3752.7,3751.0,3.51009]
[1733331218482,2.66467,3752.8,3751.0,0.8442]
[1733331218819,1.66,3752.9,3751.0,0.8442]
[1733331219028,0.55,3752.8,3751.0,0.8442]
[1733331219165,2.66496,3752.5,3751.0,3.51012]
[1733331219360,0.27707242,3752.7,3751.0,3.51012]
[1733331219361,0.27707242,3752.7,3751.5,2.66558]
[1733331219561,0.27707242,3752.7,3751.0,0.8442]
[1733331219767,0.52165471,3752.7,3751.8,2.66538]
[1733331220011,0.52165471,3752.7,3751.7,0.8442]
[1733331220217,2.66489,3752.5,3751.7,0.8442]
[1733331220382,2.66496,3752.5,3751.7,0.8442]
[1733331220580,3.18642471,3752.7,3751.7,0.8442]
[1733331220780,0.31864247,3752.6,3751.7,0.8442]
[1733331220982,1.66,3753.5,3751.7,0.8442]
[1733331221162,2.66459,3753.0,3751.7,0.8442]
[1733331221362,1.66,3753.5,3751.7,0.8442]
[1733331221568,2.6644,3753.2,3751.7,0.8442]
[1733331221983,2.66423,3753.5,3751.7,0.8442]
[1733331222315,2.930693,3753.4,3752.0,2.66522]
[1733331222525,2.930693,3753.4,3752.2,2.66509]
[1733331222526,0.266423,3753.4,3752.2,2.66509]
[1733331222700,0.5409081,3753.4,3752.6,2.66477]
[1733331223020,0.5409081,3753.4,3752.7,0.8442]
[1733331223372,0.5409081,3753.4,3752.7,3.5089]
[1733331223568,2.8236075,3754.3,3752.8,2.66462]
[1733331223814,0.1599875,3754.3,3752.7,0.8442]
[1733331224111,0.54538811,3754.0,3752.7,0.8442]
[1733331224311,0.1599875,3754.3,3752.9,2.6646]
[1733331224524,0.1599875,3754.3,3752.8,2.66466]
[1733331224726,0.1599875,3754.3,3752.7,0.8442]
[1733331224921,0.1599875,3754.3,3753.2,2.66437]
[1733331225121,0.1599875,3754.3,3753.5,2.66417]
[1733331225488,0.1599875,3754.3,3753.7,2.66403]
[1733331225673,0.1599875,3754.3,3753.3,0.8442]
[1733331226128,0.1599875,3754.3,3753.8,2.66394]
[1733331226427,0.1599875,3754.3,3753.3,0.8442]
[1733331226579,0.1599875,3754.3,3754.2,0.8442]
[1733331227172,0.1599875,3754.3,3754.2,3.50788]
[1733331227374,0.53738666,3755.7,3754.2,0.8442]
[1733331227840,0.53738666,3755.7,3754.9,2.66318]
[1733331228004,0.53738666,3755.7,3755.0,0.8442]
[1733331228210,2.66202,3756.6,3755.1,2.66304]
[1733331228391,0.266202,3756.5,3755.1,2.66304]
[1733331228593,2.66221,3756.3,3755.0,0.8442]
[1733331228890,0.03327739,3756.3,3755.0,0.8442]
[1733331229132,1.6285,3756.2,3754.4,0.8442]
[1733331229290,0.1,3757.2,3754.4,0.8442]
[1733331229291,0.53957332,3755.5,3754.7,2.66327]
[1733331229625,0.53957332,3755.5,3754.4,0.8442]
[1733331229925,2.66134,3757.5,3756.1,0.8442]
[1733331230138,2.66132,3757.6,3756.1,0.8442]
[1733331230313,1.7884875,3758.1,3756.1,0.8442]
[1733331230634,0.44492775,3758.0,3756.1,0.8442]
[1733331230921,0.0332625,3757.9,3756.1,0.8442]
[1733331231120,0.47819529,3758.0,3756.1,0.8442]
[1733331231289,2.66126,3757.7,3756.1,0.8442]
[1733331231629,0.44492775,3758.0,3756.2,3.0]
[1733331231924,0.44492775,3758.0,3756.7,2.66189]
[1733331231925,0.48942653,3757.9,3756.7,2.66189]
[1733331232125,0.54162502,3758.0,3756.8,3.0]
[1733331232291,0.54162502,3758.0,3756.8,5.66179]
[1733331232494,0.1599875,3758.1,3756.6,2.66195]
[1733331232826,0.1599875,3758.1,3756.4,3.0]
[1733331232978,0.1599875,3758.1,3756.3,3.50633]
[1733331232979,2.66122,3757.7,3756.3,0.8442]
[1733331233179,0.1599875,3758.1,3756.3,0.8442]
[1733331233180,2.927452,3757.6,3756.3,0.8442]
[1733331233426,0.266122,3757.6,3756.3,0.8442]
[1733331233723,2.66129,3757.6,3756.3,3.8442]
[1733331234395,0.522601,3757.4,3756.4,3.0]
[1733331234596,0.522601,3757.4,3756.3,0.8442]
[1733331234799,0.1599875,3758.1,3756.3,0.8442]
[1733331235096,0.55,3757.6,3756.3,0.8442]
[1733331235299,2.66149,3757.3,3756.3,0.8442]
[1733331235496,0.321149,3757.3,3756.3,0.8442]
[1733331235709,2.66028,3759.0,3756.3,0.8442]
[1733331235893,3.18853697,3757.8,3756.5,2.66204]
[1733331236231,2.66099,3758.0,3756.6,2.66191]
[1733331236376,2.66099,3758.0,3756.3,3.8442]
[1733331236582,2.66072,3758.4,3757.0,2.66165]
[1733331236782,2.66072,3758.4,3756.8,0.8442]
[1733331236783,2.66072,3758.4,3757.1,5.66161]
[1733331237045,1.5749,3759.2,3756.8,0.8442]
[1733331237235,2.66066,3758.5,3756.8,0.8442]
[1733331237398,2.6605,3758.7,3757.0,5.66166]
[1733331237603,2.66052,3758.7,3756.9,2.66176]
[1733331237812,2.66052,3758.7,3757.0,3.0]
[1733331238088,2.66057,3758.6,3757.4,3.0]
[1733331238335,2.65954,3760.1,3757.4,3.0]
[1733331238336,1.6218,3759.6,3757.5,0.8442]
[1733331238503,2.66063,3758.5,3757.5,0.8442]
[1733331238701,1.6218,3758.5,3756.5,0.8442]
[1733331238927,1.6218,3758.5,3757.0,2.66169]
[1733331239111,1.6218,3758.5,3757.1,3.0]
[1733331239320,1.6218,3758.5,3757.0,2.66167]
[1733331239499,0.52123073,3757.9,3756.5,0.8442]
[1733331239705,2.66127,3757.6,3756.5,0.8442]
[1733331239920,2.66134,3757.5,3756.5,0.8442]
[1733331240107,0.321134,3757.5,3756.5,0.8442]
[1733331240305,0.321134,3757.5,3755.5,0.40496332]
[1733331240306,2.66169,3757.0,3756.0,0.8442]
[1733331240835,0.55,3757.1,3755.3,0.8442]
[1733331241145,0.52293462,3757.2,3755.3,0.8442]
[1733331241146,2.66174,3757.0,3755.8,2.66254]
[1733331241347,0.52293462,3757.2,3755.3,0.8442]
[1733331241515,0.0332694,3757.1,3755.3,0.8442]
[1733331241713,1.6658,3756.8,3755.3,0.8442]
[1733331242351,1.6658,3756.8,3754.7,3.5075]
[1733331242352,0.5832752,3756.7,3754.7,3.5075]
[1733331242639,2.66255,3755.8,3754.7,0.8442]
[1733331242842,0.52442552,3756.4,3754.7,0.8442]
[1733331243148,0.55,3756.2,3754.7,0.8442]
[1733331243307,0.55,3756.2,3754.0,0.52304111]
[1733331243308,2.66297,3755.2,3754.0,0.8442]
[1733331243515,1.6658,3754.9,3753.9,0.01340807]
[1733331243712,4.32899,3754.9,3753.9,0.01340807]
[1733331243908,2.66332,3754.7,3753.9,0.01340807]
[1733331244255,2.66332,3754.7,3753.4,3.50842]
[1733331244256,1.6658,3756.2,3753.4,0.8442]
[1733331244435,0.53012291,3755.3,3753.5,5.32836]
[1733331244638,1.6658,3756.7,3754.8,0.8442]
[1733331244810,0.54545792,3756.5,3754.8,0.8442]
[1733331245000,2.66205,3756.5,3754.9,2.66318]
[1733331245243,0.03327587,3756.4,3754.8,0.8442]
[1733331245454,0.52671512,3756.6,3754.9,3.0]
[1733331245770,4.32777,3756.7,3755.3,2.66288]
[1733331245907,1.648,3757.5,3755.2,3.0]
[1733331246106,2.66141,3757.4,3755.6,3.0]
[1733331246306,1.648,3757.5,3755.9,2.66247]
[1733331246307,0.54573936,3756.9,3755.9,2.66247]
[1733331246505,0.54573936,3756.9,3756.0,2.66237]
[1733331247044,0.54573936,3756.9,3755.9,0.8442]
[1733331247045,0.54573936,3756.9,3756.1,3.0]
[1733331247263,1.648,3757.5,3755.9,0.8442]
[1733331247264,4.30935,3757.5,3755.9,0.8442]
[1733331247547,0.53657444,3757.4,3756.2,2.66225]
[1733331247705,0.53657444,3757.4,3756.0,2.6624]
[1733331247905,0.53657444,3757.4,3755.9,0.8442]
[1733331248172,2.66151,3757.3,3756.1,3.0]
[1733331248373,0.53657444,3757.4,3756.1,3.0]
[1733331248615,0.56984236,3757.4,3755.5,3.0]
[1733331248824,1.648,3757.5,3756.3,2.66215]
[1733331249029,2.8209275,3758.1,3754.8,0.71962998]
[1733331249030,0.1599875,3758.1,3756.4,3.0]
[1733331249175,0.1599875,3758.1,3757.5,3.0]
[1733331249529,0.1599875,3758.1,3758.0,2.66098]
[1733331249827,0.1599875,3758.1,3757.5,2.6613]
[1733331250117,0.1599875,3758.1,3757.1,2.66157]
[1733331250285,0.1599875,3758.1,3757.6,2.66125]
[1733331250488,0.1599875,3758.1,3756.7,0.53422992]
[1733331250686,0.1599875,3758.1,3757.2,2.66154]
[1733331250913,0.1599875,3758.1,3756.3,0.30049378]
[1733331250914,0.1599875,3758.1,3756.9,2.66176]
[1733331251127,0.1599875,3758.1,3757.0,2.66168]
[1733331251423,0.1599875,3758.1,3756.1,0.50517029]
[1733331251601,0.1599875,3758.1,3756.7,5.32382]
[1733331251816,0.1599875,3758.1,3756.7,0.6442]
[1733331252015,0.1599875,3758.1,3758.0,2.66098]
[1733331252199,0.1599875,3758.1,3758.0,3.30518]
[1733331252379,1.5178,3760.0,3758.0,3.30518]
[1733331252598,1.5178,3760.0,3759.1,2.6602]
[1733331252799,1.5178,3760.0,3759.2,2.66011]
[1733331253081,0.3,3761.6,3758.0,0.6442]
[1733331253082,1.6201,3761.3,3759.8,0.6442]
[1733331253279,1.6201,3761.3,3760.1,2.65949]
[1733331253514,0.16201,3761.2,3760.1,2.65949]
[1733331253933,0.16201,3761.2,3760.2,2.65939]
[1733331254224,1.6201,3761.3,3759.1,0.6442]
[1733331254385,1.6201,3761.3,3759.7,2.65976]
[1733331254580,1.6201,3761.3,3759.1,0.6442]
[1733331254581,2.65887,3761.0,3759.1,0.6442]
[1733331254781,1.6201,3761.3,3759.2,2.66014]
[1733331255299,1.7250875,3761.8,3760.8,2.65899]
[1733331255514,1.7250875,3761.8,3759.6,0.6442]
[1733331255515,0.54449117,3761.5,3759.6,0.6442]
[1733331255823,0.54449117,3761.5,3758.6,2.6605]
[1733331255824,0.54449117,3761.5,3759.8,0.6442]
[1733331255978,0.54449117,3761.5,3759.8,3.30391]
[1733331256178,0.54449117,3761.5,3760.6,2.65909]
[1733331256376,0.54449117,3761.5,3759.7,2.65978]
[1733331256806,0.54449117,3761.5,3760.7,2.65905]
[1733331257011,0.54449117,3761.5,3760.8,2.65896]
[1733331257179,0.54449117,3761.5,3759.9,0.6442]
[1733331257379,0.54449117,3761.5,3761.0,2.65885]
[1733331257731,0.54449117,3761.5,3759.9,0.6442]
[1733331257732,0.54449117,3761.5,3761.2,2.65869]
[1733331257882,0.54449117,3761.5,3760.0,2.65957]
[1733331258222,0.54449117,3761.5,3761.0,2.65882]
[1733331258730,0.1599875,3761.8,3761.1,0.6442]
[1733331258931,0.1599875,3761.8,3760.5,0.6442]
[1733331259376,0.1599875,3761.8,3760.6,2.65915]
[1733331259582,0.1599875,3761.8,3761.1,2.65878]
[1733331259978,0.1599875,3761.8,3760.7,2.65901]
[1733331260180,0.1599875,3761.8,3760.5,0.6442]
[1733331260181,2.60097512,3763.2,3761.3,2.6586]
[1733331260533,2.65736,3763.2,3761.5,2.65848]
[1733331260841,0.5324005,3762.8,3761.1,0.54415833]
[1733331260986,2.65768,3762.7,3761.1,2.65877]
[1733331261323,0.5324005,3762.8,3760.9,1.6559]
[1733331261508,2.65767,3762.7,3761.2,2.6587]
[1733331261709,2.65806,3762.2,3760.9,1.6559]
[1733331261913,3.1900505,3762.8,3760.9,1.6559]
[1733331262092,0.5324005,3762.8,3760.9,1.6559]
[1733331262493,2.65809,3762.1,3760.9,1.6559]
[1733331262694,2.65798,3762.3,3760.9,1.6559]
[1733331262903,0.265798,3762.2,3760.9,1.6559]
[1733331263162,0.55,3762.7,3760.9,1.6559]
[1733331263163,2.65788,3762.4,3760.9,4.3148]
[1733331263317,0.5324005,3762.8,3761.0,2.65886]
[1733331263511,0.5324005,3762.8,3761.7,2.65837]
[1733331263759,0.5324005,3762.8,3761.4,2.65853]
[1733331263958,1.5396,3762.7,3760.6,0.53149606]
[1733331264164,0.20720005,3762.7,3760.8,2.659]
[1733331264463,0.5324005,3762.8,3760.8,2.659]
[1733331264464,0.5324005,3762.8,3761.8,1.5917]
[1733331264815,0.5324005,3762.8,3761.8,4.24998]
[1733331265011,0.5324005,3762.8,3761.8,1.5917]
[1733331265269,1.5396,3763.7,3762.4,2.65786]
[1733331265446,0.419643,3763.6,3762.4,2.65786]
[1733331265773,0.419643,3763.6,3761.9,2.65823]
[1733331265970,6.53693824,3765.2,3762.6,2.65767]
[1733331265971,0.54349154,3763.3,3762.6,2.65767]
[1733331266121,0.54349154,3763.3,3762.1,2.65806]
[1733331266319,0.54349154,3763.3,3762.3,2.65788]
[1733331266679,0.54349154,3763.3,3761.8,1.5917]
[1733331266902,0.54349154,3763.3,3762.3,2.65794]
[1733331267059,0.54349154,3763.3,3762.6,1.5916]
[1733331267252,1.5461,3764.2,3762.7,2.65765]
[1733331267456,1.5461,3764.2,3762.8,2.65757]
[1733331267688,1.5461,3764.2,3762.6,1.5916]
[1733331268006,1.5461,3764.2,3763.3,2.65719]
[1733331268208,1.5461,3764.2,3763.4,2.65715]
[1733331268511,1.5363,3764.9,3763.7,2.65693]
[1733331268709,1.5363,3765.5,3763.8,1.5916]
[1733331268890,1.5363,3765.5,3764.0,2.65668]
[1733331269203,0.1599875,3765.6,3763.9,2.65681]
[1733331269413,0.1599875,3765.6,3765.5,2.65568]
[1733331269698,0.1599875,3765.6,3763.7,0.2]
[1733331269699,0.1599875,3765.6,3763.5,1.5916]
[1733331269899,0.1599875,3765.6,3763.6,0.55]
[1733331270059,0.1599875,3765.6,3764.2,0.55]
[1733331270258,0.1599875,3765.6,3764.5,0.55]
[1733331270464,0.51986426,3766.6,3765.7,3.0]
[1733331270698,2.65395,3768.0,3766.0,3.0]
[1733331270903,1.5363,3768.2,3766.0,0.55]
[1733331271103,1.5363,3768.2,3766.8,3.0]
[1733331271411,1.5363,3768.2,3766.4,3.0]
[1733331271571,1.5363,3768.2,3766.2,3.0]
[1733331271904,1.5363,3768.2,3765.9,1.5916]
[1733331271905,1.5363,3768.2,3766.0,3.0]
[1733331272103,1.5363,3768.2,3765.9,4.24697]
[1733331272104,1.5363,3768.2,3766.3,3.0]
[1733331272401,2.65487,3766.7,3765.4,1.6036]
[1733331272557,1.5888,3767.0,3765.5,0.16036]
[1733331272859,2.65478,3766.8,3765.5,0.16036]
[1733331273082,1.5888,3767.0,3765.5,2.65564]
[1733331273302,2.68344,3768.7,3765.9,1.5261]
[1733331273303,1.5505,3767.5,3765.9,1.5261]
[1733331273618,0.5194391,3767.4,3765.9,4.1815]
[1733331273901,0.4694391,3767.4,3765.9,1.5261]
[1733331274501,0.55,3767.3,3765.3,1.5261]
[1733331274715,2.65525,3766.2,3764.6,0.39622335]
[1733331274996,1.5505,3767.0,3764.5,1.062765]
[1733331275207,1.5505,3767.0,3764.4,4.1825]
[1733331275208,4.20609,3765.7,3764.4,1.5261]
[1733331275361,0.420609,3765.6,3763.9,1.062924]
[1733331275564,2.65605,3765.0,3763.9,1.062924]
[1733331275798,3.20568,3765.5,3763.7,1.5261]
[1733331276000,3.20568,3765.5,3763.1,0.40131921]
[1733331276001,0.55,3765.5,3763.3,1.063148]
[1733331276309,1.5505,3765.7,3763.4,1.5261]
[1733331276658,2.65456,3767.1,3763.3,1.063148]
[1733331276659,1.5505,3766.2,3764.0,1.5261]
[1733331276908,1.5505,3766.8,3765.7,2.65553]
[1733331277105,1.5505,3768.1,3764.9,1.5261]
[1733331277311,2.65435,3767.4,3764.9,1.5261]
[1733331277459,2.65392,3768.0,3765.8,2.65546]
[1733331277460,2.65424,3767.6,3765.8,2.65546]
[1733331277656,0.53135577,3767.0,3766.0,3.0]
[1733331278008,0.53135577,3767.0,3765.2,3.52997411]
[1733331278009,1.5505,3768.1,3766.2,3.0]
[1733331278307,0.53831723,3767.8,3766.2,3.0]
[1733331278488,3.19243723,3767.8,3766.3,3.0]
[1733331278807,3.19243723,3767.8,3766.2,2.65519]
[1733331278808,0.53831723,3767.8,3766.5,2.65496]
[1733331279006,4.20442,3768.1,3766.1,1.5102]
[1733331279007,1.5505,3768.1,3766.1,1.5102]
[1733331279208,1.5505,3768.1,3766.8,2.65471]
[1733331279365,1.5505,3768.1,3766.2,0.70102]
[1733331279701,1.5505,3768.1,3766.9,2.65468]
[1733331279999,1.5505,3768.1,3767.0,3.0]
[1733331280304,1.5505,3768.1,3766.3,3.0]
[1733331280508,1.5505,3768.1,3766.9,3.0]
[1733331281090,1.5505,3768.1,3767.0,2.65461]
[1733331281277,1.5505,3768.1,3767.1,3.0]
[1733331281482,1.5505,3768.1,3765.9,1.5585]
[1733331281791,4.20437,3768.1,3766.6,2.65489]
[1733331282087,4.20437,3768.1,3765.9,1.5585]
[1733331282088,1.5505,3768.1,3765.9,1.5585]
[1733331282402,2.65424,3767.6,3766.1,2.6552]
[1733331282757,2.65424,3767.6,3766.2,2.65519]
[1733331283108,0.55,3768.0,3766.0,3.0]
[1733331283297,0.55,3768.0,3765.9,1.5585]
[1733331283507,0.55,3767.8,3766.0,3.15585]
[1733331283663,2.65413,3767.7,3766.0,0.15585]
[1733331283862,1.6454,3767.8,3765.2,1.648]
[1733331283863,1.6454,3767.8,3765.2,1.6064]
[1733331284063,0.53740141,3768.2,3767.2,2.65448]
[1733331284285,0.53740141,3768.2,3766.9,2.65469]
[1733331284598,0.53740141,3768.2,3766.6,2.65488]
[1733331284961,0.53740141,3768.2,3766.7,3.0]
[1733331285308,2.65399,3768.0,3766.7,3.0]
[1733331285660,0.55,3768.1,3765.9,4.6064]
[1733331285824,0.55,3767.7,3765.3,1.6068]
[1733331285968,4.17107,3768.0,3765.3,1.6068]
[1733331286166,1.5171,3768.0,3765.3,2.01358004]
[1733331286366,2.65406,3767.9,3766.3,2.65505]
[1733331286570,2.65408,3767.8,3766.5,2.65497]
[1733331286769,1.5171,3768.0,3765.3,2.53526143]
[1733331287080,1.5171,3768.0,3766.5,3.0]
[1733331287285,2.65408,3767.8,3766.6,3.0]
[1733331287502,1.5171,3768.0,3767.3,2.65441]
[1733331287712,1.5171,3768.0,3767.1,3.0]
[1733331288088,1.5171,3768.0,3766.5,2.65491]
[1733331288089,1.5171,3768.0,3767.2,3.0]
[1733331288309,1.5171,3768.0,3766.8,3.0]
[1733331288511,1.5171,3768.0,3767.3,3.0]
[1733331288665,1.5171,3768.0,3766.7,2.65477]
[1733331288871,1.5171,3768.0,3766.1,1.5555]
[1733331289180,1.5171,3768.0,3766.8,2.65477]
[1733331289400,1.5171,3768.0,3767.3,3.0]
[1733331289592,1.5171,3768.0,3767.0,2.65463]
[1733331289786,1.5171,3768.0,3767.0,2.65458]
[1733331290025,1.5171,3768.0,3767.1,3.0]
[1733331290335,1.5171,3768.0,3767.5,3.0]
[1733331290535,1.5171,3768.0,3766.8,3.0]
[1733331290837,1.5171,3768.0,3767.4,3.0]
[1733331291019,1.5171,3768.0,3766.3,2.65508]
[1733331291020,1.5171,3768.0,3767.6,3.0]
[1733331291395,1.5171,3768.0,3767.4,3.0]
[1733331291599,1.5171,3768.0,3767.4,2.65433]
[1733331291947,1.6495,3768.5,3766.6,2.65489]
[1733331292244,0.1202829,3768.6,3767.5,1.5527]
[1733331292539,0.1202829,3768.6,3768.2,2.65374]
[1733331292830,0.1202829,3768.6,3767.5,1.5527]
[1733331293001,0.1202829,3768.6,3767.6,0.15527]
[1733331293335,0.1202829,3768.6,3768.4,2.65363]
[1733331293692,0.1202829,3768.6,3767.6,0.15527]
[1733331293896,0.1202829,3768.6,3768.1,2.65378]
[1733331294111,0.1202829,3768.6,3767.6,0.15527]
[1733331294293,0.1202829,3768.6,3766.9,1.5751]
[1733331294625,0.1202829,3768.6,3767.0,2.65463]
[1733331294793,2.65358,3768.5,3767.2,2.65449]
[1733331294994,2.65358,3768.5,3766.3,1.97116954]
[1733331294995,1.5712,3768.4,3766.3,1.97116954]
[1733331295317,0.55,3768.3,3766.3,1.97116954]
[1733331295631,0.52486774,3768.1,3766.4,0.19711695]
[1733331295838,2.65406,3767.9,3766.6,2.6549]
[1733331295992,1.6106,3767.5,3766.4,0.19711695]
[1733331296192,1.6106,3767.5,3764.9,2.65604]
[1733331296193,0.55,3767.4,3765.3,4.2761]
[1733331296408,1.6106,3766.9,3765.6,2.65555]
[1733331296634,2.65491,3766.7,3765.0,2.65604]
[1733331296835,2.65491,3766.7,3765.6,0.53830546]
[1733331297052,1.6106,3766.9,3765.6,0.53830546]
[1733331297256,2.65489,3766.7,3765.6,0.53830546]
[1733331297560,1.6106,3766.9,3764.9,2.65611]
[1733331297853,1.6106,3766.9,3766.3,2.65511]
[1733331298059,1.6106,3767.6,3765.6,1.6203]
[1733331298362,1.6106,3767.6,3766.4,2.65504]
[1733331298510,2.65435,3767.5,3766.2,2.65519]
[1733331298854,1.6106,3767.6,3765.6,1.6203]
[1733331298855,2.13576399,3767.6,3765.6,1.6203]
[1733331299053,2.13576399,3767.6,3766.5,2.65497]
[1733331299352,2.13576399,3767.6,3765.6,1.6203]
[1733331299574,2.13576399,3767.6,3766.3,2.65512]
[1733331299575,2.65428,3767.5,3766.3,2.65512]
[1733331299732,2.13576399,3767.6,3766.4,2.65505]
[1733331299920,2.13576399,3767.6,3766.5,2.65492]
[1733331300116,1.6106,3767.4,3765.3,0.55]
[1733331300351,1.6106,3767.4,3765.2,0.9383795]
[1733331300352,1.6106,3767.5,3765.2,2.65585]
[1733331300563,2.65491,3766.6,3764.1,2.682986]
[1733331300861,2.65442,3767.3,3764.1,2.682986]
[1733331300862,1.6106,3765.8,3764.1,2.682986]
[1733331301068,1.6106,3765.8,3763.8,2.65685]
[1733331301266,1.6106,3765.8,3765.0,2.65602]
[1733331301558,1.6248,3768.0,3765.8,1.5028]
[1733331301971,2.65413,3767.7,3766.1,2.65525]
[1733331302134,1.6248,3767.6,3765.2,1.5028]
[1733331302474,1.6248,3767.6,3766.7,2.65482]
[1733331302665,1.6248,3767.6,3766.2,2.65514]
[1733331302666,1.6248,3767.6,3766.6,2.65491]
[1733331302967,1.6248,3767.6,3767.1,2.65449]
[1733331303151,1.6248,3767.6,3766.3,0.55]